fUSD/lending_fUSD_20251226
["ID","MTS","AMOUNT","RATE_DAILY","PERIOD"]
[399857941,1766758238909,-500.0,0.00014778,2]
[399857942,1766758238921,-500.0,0.00014778,2]
[399857943,1766758238931,-22945.69068304,0.00014778,2]
[399857944,1766758238941,-166.67,0.0001478,2]
[399857945,1766758238952,-1680.0,0.00014812,2]
[399857946,1766758238962,-250.0,0.00014814,2]
[399857947,1766758238972,-500.0,0.0001482,2]
[399857948,1766758238983,-156.93078452,0.00014855,2]
[399857949,1766758238996,-226.71743608,0.000149,2]
[399857950,1766758239007,-119852.00464713,0.00014943,2]
[399857951,1766758239017,-500.0,0.00014955,2]
[399857952,1766758239027,-620.0,0.00014969,2]
[399857953,1766758239037,-200.0,0.00014969,2]
[399857954,1766758239047,-207.4,0.00014969,2]
[399857955,1766758239058,-215.0738,0.00014969,2]
[399857956,1766758239068,-223.0315306,0.00014969,2]
[399857957,1766758239079,-500.0,0.00014969,2]
[399857958,1766758239107,-500.0,0.00014969,2]
[399857959,1766758239120,-500.0,0.00014969,2]
[399857960,1766758239131,-500.0,0.00014969,2]
[399857961,1766758239141,-151.0,0.00014969,2]
[399857962,1766758239153,-231.28369723,0.00014969,2]
[399857963,1766758239164,-500.0,0.00014969,2]
[399857964,1766758239174,-156.587,0.00014969,2]
[399857965,1766758239185,-239.84119403,0.00014969,2]
[399857966,1766758239196,-500.0,0.00014969,2]
[399857967,1766758239207,-162.380719,0.00014969,2]
[399857968,1766758239219,-248.71531821,0.00014969,2]
[399857969,1766758239231,-154.02756671,0.00014969,2]
[399857970,1766758239243,-500.0,0.00014969,2]
[399857971,1766758239254,-257.91778498,0.00014969,2]
[399857972,1766758239264,-500.0,0.00014969,2]
[399857973,1766758239275,-267.46074303,0.00014969,2]
[399857974,1766758239286,-500.0,0.00014969,2]
[399857975,1766758239296,-277.35679052,0.00014969,2]
[399857976,1766758239307,-500.0,0.00014969,2]
[399857977,1766758239318,-500.0,0.00014969,2]
[399857978,1766758239327,-500.0,0.00014969,2]
[399857979,1766758239338,-500.0,0.00014969,2]
[399857980,1766758239348,-250.0,0.00014969,2]
[399857981,1766758239359,-250.0,0.00014969,2]
[399857983,1766758239369,-250.0,0.00014969,2]
[399857984,1766758239379,-250.0,0.00014969,2]
[399857985,1766758239389,-250.0,0.00014969,2]
[399857986,1766758239399,-250.0,0.00014969,2]
[399857987,1766758239409,-250.0,0.00014969,2]
[399857988,1766758239419,-250.0,0.00014969,2]
[399857989,1766758239431,-250.0,0.00014969,2]
[399857990,1766758239446,-250.0,0.00014969,2]
[399857991,1766758239457,-500.0,0.00014969,2]
[399857992,1766758239468,-250.0,0.00014969,2]
[399857993,1766758239479,-500.0,0.00014969,2]
[399857995,1766758239489,-500.0,0.00014969,2]
[399857997,1766758239500,-500.0,0.00014969,2]
[399857998,1766758239511,-500.0,0.00014969,2]
[399857999,1766758239521,-500.0,0.00014969,2]
[399858000,1766758239532,-500.0,0.00014969,2]
[399858001,1766758239542,-500.0,0.00014969,2]
[399858002,1766758239552,-500.0,0.00014969,2]
[399858003,1766758239561,-500.0,0.00014969,2]
[399858004,1766758239571,-500.0,0.00014969,2]
[399858005,1766758239582,-500.0,0.00014969,2]
[399858006,1766758239592,-500.0,0.00014969,2]
[399858007,1766758239603,-500.0,0.00014969,2]
[399858008,1766758239614,-500.0,0.00014969,2]
[399858009,1766758239624,-500.0,0.00014969,2]
[399858010,1766758239636,-500.0,0.00014969,2]
[399858011,1766758239646,-500.0,0.00014969,2]
[399858012,1766758239657,-500.0,0.00014969,2]
[399858013,1766758239668,-500.0,0.00014969,2]
[399858014,1766758239678,-500.0,0.00014969,2]
[399858015,1766758239689,-500.0,0.00014969,2]
[399858016,1766758239700,-1772.09,0.0001502,2]
[399858017,1766758239710,-195.0,0.00015068,2]
[399858018,1766758239720,-333.68168469,0.00015068,2]
[399858019,1766758239732,-600.0,0.00015068,2]
[399858020,1766758239743,-300.0,0.00015068,2]
[399858021,1766758239753,-195.0,0.00015068,2]
[399858022,1766758239764,-22945.69068304,0.00015081,2]
[399858023,1766758239773,-500.0,0.00015094,2]
[399858024,1766758239783,-151.0,0.00015233,2]
[399858025,1766758239794,-151.0,0.0001524,2]
[399858026,1766758239805,-153.02274925,0.00015288,2]
[399858027,1766758239815,-150.0,0.00015288,2]
[399858028,1766758239826,-150.0,0.00015288,2]
[399858029,1766758239836,-217.88182388,0.00015288,2]
[399858030,1766758239846,-150.0,0.00015288,2]
[399858031,1766758239856,-150.0,0.00015288,2]
[399858032,1766758239867,-150.0,0.00015288,2]
[399858033,1766758239877,-150.53428596,0.00015288,2]
[399858034,1766758239887,-150.0,0.00015288,2]
[399858035,1766758239897,-150.0,0.00015288,2]
[399858036,1766758239907,-150.0,0.00015288,2]
[399858037,1766758239917,-150.0,0.00015288,2]
[399858038,1766758239927,-150.0,0.00015288,2]
[399858039,1766758239938,-150.0,0.00015288,2]
[399858040,1766758239948,-150.0,0.00015288,2]
[399858041,1766758239958,-1772.09,0.00015294,2]
[399858042,1766758239969,-250.0,0.00015299,2]
[399858043,1766758239979,-300.0,0.00015299,2]
[399858044,1766758239989,-2500.0,0.00015299,2]
[399858047,1766758240277,-150.0,0.00015334,2]
[399858048,1766758240294,-150.0,0.00015348,2]
[399858049,1766758240304,-150.0,0.00015365,2]
[399858050,1766758240316,-500.0,0.00015368,2]
[399858051,1766758240326,-150.0,0.00015369,2]
[399858052,1766758240336,-150.0,0.00015373,2]
[399858053,1766758240346,-150.0,0.00015379,2]
[399858054,1766758240356,-150.0,0.00015382,2]
[399858055,1766758240366,-22945.69068304,0.00015384,2]
[399858056,1766758240376,-150.0,0.00015409,2]
[399858057,1766758240386,-150.0,0.00015425,2]
[399858058,1766758240396,-150.0,0.00015429,2]
[399858059,1766758240406,-150.0,0.00015442,2]
[399858060,1766758240416,-150.0,0.00015449,2]
[399858061,1766758240426,-150.0,0.00015458,2]
[399858062,1766758240436,-150.0,0.0001547,2]
[399858063,1766758240446,-150.0,0.00015471,2]
[399858064,1766758240455,-150.0,0.00015476,2]
[399858065,1766758240467,-150.0,0.00015476,2]
[399858066,1766758240476,-10013.14109971,0.0001548,2]
[399858067,1766758240487,-150.0,0.00015517,2]
[399858068,1766758240497,-150.0,0.00015519,2]
[399858069,1766758240507,-150.0,0.0001553,2]
[399858070,1766758240516,-150.0,0.0001553,2]
[399858071,1766758240526,-150.0,0.00015542,2]
[399858072,1766758240536,-166.67,0.00015551,2]
[399858073,1766758240546,-150.0,0.00015563,2]
[399858074,1766758240556,-1772.09,0.00015568,2]
[399858075,1766758240566,-150.0,0.00015571,2]
[399858076,1766758240576,-150.0,0.00015571,2]
[399858077,1766758240585,-150.0,0.00015591,2]
[399858078,1766758240596,-150.0,0.00015597,2]
[399858079,1766758240605,-150.0,0.00015609,2]
[399858080,1766758240615,-150.0,0.00015611,2]
[399858081,1766758240625,-150.0,0.00015627,2]
[399858082,1766758240635,-150.0,0.00015627,2]
[399858083,1766758240644,-850.97,0.00015628,2]
[399858084,1766758240654,-500.0,0.00015642,2]
[399858085,1766758240664,-150.0,0.00015652,2]
[399858086,1766758240674,-150.0,0.00015655,2]
[399858087,1766758240683,-150.0,0.00015665,2]
[399858088,1766758240693,-150.0,0.00015665,2]
[399858089,1766758240703,-500.0,0.00015672,2]
[399858090,1766758240713,-294.86010463,0.00015672,2]
[399858091,1766758240723,-500.0,0.00015672,2]
[399858092,1766758240734,-172.91119778,0.00015673,2]
[399858093,1766758240746,-500.0,0.00015673,2]
[399858094,1766758240756,-169.4235972,0.00015673,2]
[399858095,1766758240766,-500.0,0.00015673,2]
[399858096,1766758240776,-176.81475935,0.00015673,2]
[399858097,1766758240786,-500.0,0.00015673,2]
[399858098,1766758240797,-500.0,0.00015673,2]
[399858099,1766758240808,-500.0,0.00015673,2]
[399858100,1766758240819,-167.25817595,0.00015673,2]
[399858101,1766758240830,-500.0,0.00015673,2]
[399858102,1766758240843,-562.7154793,0.00015673,2]
[399858103,1766758240855,-500.0,0.00015673,2]
[399858104,1766758240866,-500.0,0.00015673,2]
[399858105,1766758240878,-161.62175621,0.00015673,2]
[399858106,1766758240889,-163.24139197,0.00015673,2]
[399858107,1766758240899,-500.47659304,0.00015673,2]
[399858108,1766758240910,-500.0,0.00015673,2]
[399858109,1766758240920,-500.0,0.00015673,2]
[399858110,1766758240930,-550.63113384,0.00015673,2]
[399858111,1766758240941,-500.0,0.00015673,2]
[399858112,1766758240951,-500.0,0.00015673,2]
[399858113,1766758240961,-500.0,0.00015673,2]
[399858114,1766758240972,-162.2863667,0.00015673,2]
[399858115,1766758240983,-516.25564546,0.00015673,2]
[399858116,1766758240992,-500.0,0.00015673,2]
[399858117,1766758241003,-500.0,0.00015673,2]
[399858118,1766758241013,-500.0,0.00015673,2]
[399858119,1766758241022,-500.0,0.00015673,2]
[399858120,1766758241033,-500.1883239,0.00015673,2]
[399858121,1766758241043,-500.0,0.00015673,2]
[399858122,1766758241053,-500.0,0.00015673,2]
[399858123,1766758241064,-453.97278429,0.00015673,2]
[399858124,1766758241074,-500.0,0.00015673,2]
[399858125,1766758241084,-500.0,0.00015673,2]
[399858126,1766758241095,-500.0,0.00015673,2]
[399858127,1766758241105,-500.0,0.00015673,2]
[399858128,1766758241115,-500.0,0.00015673,2]
[399858129,1766758241125,-500.0,0.00015673,2]
[399858130,1766758241135,-500.0,0.00015673,2]
[399858131,1766758241145,-500.0,0.00015673,2]
[399858132,1766758241155,-500.0,0.00015673,2]
[399858133,1766758241165,-392.473933,0.00015673,2]
[399858134,1766758241175,-500.0,0.00015673,2]
[399858135,1766758241185,-500.0,0.00015673,2]
[399858136,1766758241195,-150.0,0.00015674,2]
[399858137,1766758241205,-500.0,0.00015687,2]
[399858138,1766758241214,-22945.69068304,0.00015688,2]
[399858139,1766758241224,-150.0,0.00015692,2]
[399858140,1766758241235,-150.0,0.00015701,2]
[399858141,1766758241246,-150.0,0.00015712,2]
[399858142,1766758241256,-150.0,0.00015712,2]
[399858143,1766758241267,-150.0,0.00015712,2]
[399858144,1766758241277,-150.0,0.00015712,2]
[399858145,1766758241288,-150.0,0.00015747,2]
[399858146,1766758241299,-150.0,0.00015751,2]
[399858147,1766758241309,-150.0,0.0001576,2]
[399858148,1766758241319,-150.0,0.00015773,2]
[399858149,1766758241329,-150.0,0.00015773,2]
[399858150,1766758241338,-150.0,0.00015793,2]
[399858151,1766758241348,-433.0,0.00015795,2]
[399858152,1766758241359,-150.0,0.00015797,2]
[399858153,1766758241369,-6034.0,0.00015822,2]
[399858154,1766758241379,-150.0,0.00015828,2]
[399858155,1766758241389,-500.0,0.00015829,2]
[399858156,1766758241398,-150.0,0.00015834,2]
[399858157,1766758241408,-150.0,0.00015839,2]
[399858158,1766758241418,-1772.09,0.00015842,2]
[399858159,1766758241428,-150.0,0.00015854,2]
[399858160,1766758241437,-150.0,0.00015854,2]
[399858161,1766758241449,-150.0,0.00015854,2]
[399858162,1766758241459,-150.0,0.00015854,2]
[399858163,1766758241470,-150.0,0.00015882,2]
[399858164,1766758241480,-150.0,0.00015884,2]
[399858165,1766758241489,-150.0,0.00015894,2]
[399858166,1766758241499,-150.0,0.00015905,2]
[399858167,1766758241510,-500.0,0.00015916,2]
[399858168,1766758241519,-150.0,0.0001593,2]
[399858169,1766758241528,-150.0,0.00015935,2]
[399858170,1766758241538,-150.0,0.00015948,2]
[399858171,1766758241548,-150.0,0.00015955,2]
[399858172,1766758241557,-150.0,0.00015967,2]
[399858173,1766758241567,-150.0,0.00015967,2]
[399858174,1766758241577,-150.0,0.00015976,2]
[399858175,1766758241587,-150.0,0.00015983,2]
[399858176,1766758241596,-22945.69068304,0.00015991,2]
[399858177,1766758241606,-150.0,0.00015995,2]
[399858178,1766758241615,-500.0,0.00015999,2]
[399858179,1766758241625,-514.26068371,0.00015999,2]
[399858180,1766758241634,-1000.0,0.00016,2]
[399858181,1766758241644,-1000.0,0.00016,2]
[399858182,1766758241655,-1000.0,0.00016,2]
[399858183,1766758241665,-726.047,0.00016,2]
[399858184,1766758241674,-1000.0,0.00016,2]
[399858185,1766758241684,-329.99,0.00016011,2]
[399858186,1766758241694,-150.0,0.00016016,2]
[399858187,1766758241703,-150.0,0.00016016,2]
[399858188,1766758241712,-150.0,0.00016022,2]
[399858189,1766758241722,-150.0,0.00016043,2]
[399858190,1766758241732,-150.0,0.00016043,2]
[399858191,1766758241742,-150.0,0.00016052,2]
[399858192,1766758241755,-150.0,0.0001606,2]
[399858193,1766758241764,-150.0,0.00016068,2]
[399858194,1766758241774,-150.0,0.00016076,2]
[399858195,1766758241784,-150.0,0.00016097,2]
[399858196,1766758241793,-945.97895115,0.00016107,2]
[399858197,1766758241803,-150.0,0.00016114,2]
[399858198,1766758241812,-1772.09,0.00016116,2]
[399858199,1766758241823,-9999.99,0.00016116,2]
[399858200,1766758241832,-9999.99,0.00016116,2]
[399858201,1766758241843,-5454.65,0.00016116,2]
[399858202,1766758241854,-4999.99,0.00016116,2]
[399858203,1766758241863,-150.99,0.00016116,2]
[399858204,1766758241873,-9999.99,0.00016116,2]
[399858205,1766758241882,-29230.87,0.00016116,2]
[399858206,1766758241892,-3067.45,0.00016116,2]
[399858207,1766758241901,-820.65,0.00016116,2]
[399858208,1766758241912,-299.99,0.00016116,4]
[399858209,1766758241922,-150.99,0.00016116,2]
[399858210,1766758241932,-499.99,0.00016116,2]
[399858211,1766758241942,-999.99,0.00016116,2]
[399858212,1766758241952,-6507.64,0.00016116,2]
[399858213,1766758241962,-150.0,0.00016137,2]
[399858214,1766758241972,-150.0,0.00016137,2]
[399858215,1766758241981,-150.0,0.00016137,2]
[399858216,1766758241991,-150.0,0.00016137,2]
[399858217,1766758242001,-150.0,0.00016137,2]
[399858218,1766758242011,-150.0,0.00016137,2]
[399858219,1766758242020,-150.0,0.0001616,2]
[399858220,1766758242030,-150.0,0.00016177,2]
[399858221,1766758242040,-587.0,0.00016179,2]
[399858222,1766758242050,-587.0,0.00016179,2]
[399858223,1766758242060,-380.0,0.0001618,2]
[399858224,1766758242070,-510.36426481,0.0001619,2]
[399858225,1766758242080,-150.0,0.00016198,2]
[399858226,1766758242090,-150.0,0.00016206,2]
[399858227,1766758242100,-150.0,0.00016214,2]
[399858228,1766758242111,-1000.0,0.00016221,2]
[399858229,1766758242121,-535.98677434,0.00016221,2]
[399858230,1766758242130,-1000.0,0.00016221,2]
[399858231,1766758242140,-537.91693172,0.00016221,2]
[399858232,1766758242151,-1000.0,0.00016221,2]
[399858233,1766758242162,-1000.0,0.00016221,2]
[399858234,1766758242172,-1000.0,0.00016221,2]
[399858235,1766758242184,-502.2197403,0.00016221,2]
[399858236,1766758242195,-1000.0,0.00016221,2]
[399858237,1766758242206,-1000.0,0.00016221,2]
[399858238,1766758242217,-1000.0,0.00016221,2]
[399858239,1766758242228,-1000.0,0.00016221,2]
[399858240,1766758242237,-632.06664776,0.00016221,2]
[399858241,1766758242247,-1000.0,0.00016221,2]
[399858242,1766758242259,-1145.21459927,0.00016221,2]
[399858243,1766758242269,-367.02457778,0.00016221,2]
[399858244,1766758242279,-1000.0,0.00016221,2]
[399858245,1766758242289,-1000.4535635,0.00016221,2]
[399858246,1766758242299,-1000.0,0.00016221,2]
[399858247,1766758242309,-484.73948498,0.00016221,2]
[399858248,1766758242319,-1000.0,0.00016221,2]
[399858249,1766758242329,-1000.45438257,0.00016221,2]
[399858250,1766758242339,-1000.0,0.00016221,2]
[399858251,1766758242350,-1000.0,0.00016221,2]
[399858252,1766758242361,-1000.0,0.00016221,2]
[399858253,1766758242371,-937.57390351,0.00016221,2]
[399858254,1766758242381,-1000.0,0.00016221,2]
[399858256,1766758242391,-1000.0,0.00016221,2]
[399858258,1766758242401,-304.73518066,0.00016221,2]
[399858260,1766758242410,-1000.0,0.00016221,2]
[399858261,1766758242420,-150.0,0.00016222,2]
[399858263,1766758242430,-150.0,0.00016231,2]
[399858265,1766758242439,-150.0,0.00016231,2]
[399858266,1766758242449,-150.0,0.00016252,2]
[399858267,1766758242459,-150.0,0.00016258,2]
[399858268,1766758242470,-150.0,0.00016258,2]
[399858269,1766758242480,-223.88,0.00016266,2]
[399858270,1766758242489,-150.0,0.00016279,2]
[399858271,1766758242499,-150.0,0.00016291,2]
[399858272,1766758242510,-2351.0,0.00016293,2]
[399858273,1766758242519,-22945.69068304,0.00016294,2]
[399858274,1766758242529,-150.0,0.00016298,2]
[399858275,1766758242539,-150.0,0.00016307,2]
[399858276,1766758242549,-150.0,0.00016307,2]
[399858277,1766758242560,-150.0,0.00016319,2]
[399858278,1766758242569,-166.67,0.00016322,2]
[399858279,1766758242580,-150.0,0.00016326,2]
[399858280,1766758242590,-642.94,0.00016338,2]
[399858281,1766758242600,-287.61899177,0.00016338,2]
[399858282,1766758242610,-150.0,0.00016339,2]
[399858283,1766758242620,-150.0,0.00016344,2]
[399858284,1766758242630,-150.0,0.00016369,2]
[399858285,1766758242640,-150.0,0.0001638,2]
[399858286,1766758242649,-150.0,0.00016389,2]
[399858287,1766758242659,-1772.09,0.0001639,2]
[399858288,1766758242669,-150.0,0.00016392,2]
[399858289,1766758242679,-150.0,0.0001642,2]
[399858290,1766758242689,-150.0,0.0001642,2]
[399858291,1766758242699,-150.0,0.0001642,2]
[399858292,1766758242708,-150.0,0.0001642,2]
[399858293,1766758242719,-150.0,0.00016435,2]
[399858294,1766758242732,-294.2331637,0.00016437,2]
[399858295,1766758242742,-1391.42070921,0.00016438,2]
[399858296,1766758242756,-1391.42070921,0.00016438,2]
[399858297,1766758242766,-1391.42070921,0.00016438,2]
[399858298,1766758242775,-1391.42070921,0.00016438,2]
[399858299,1766758242787,-1391.42070921,0.00016438,2]
[399858300,1766758242797,-1391.42070921,0.00016438,2]
[399858301,1766758242807,-1391.42070921,0.00016438,2]
[399858302,1766758242816,-1391.42070921,0.00016438,2]
[399858303,1766758242828,-1391.42070921,0.00016438,2]
[399858304,1766758242837,-1391.42070921,0.00016438,2]
[399858305,1766758242847,-1391.42070921,0.00016438,2]
[399858306,1766758242857,-1391.42070921,0.00016438,2]
[399858307,1766758242866,-1391.42070921,0.00016438,2]
[399858308,1766758242876,-1391.42070921,0.00016438,2]
[399858309,1766758242887,-1391.42070921,0.00016438,2]
[399858311,1766758242896,-1391.42070921,0.00016438,2]
[399858312,1766758242906,-1391.42070921,0.00016438,2]
[399858313,1766758242916,-1391.42070921,0.00016438,2]
[399858314,1766758242926,-1391.42070921,0.00016438,2]
[399858315,1766758242936,-1391.42070921,0.00016438,2]
[399858316,1766758242946,-1391.42070921,0.00016438,2]
[399858317,1766758242956,-1391.42070921,0.00016438,2]
[399858318,1766758242966,-1391.42070921,0.00016438,2]
[399858319,1766758242976,-1391.42070921,0.00016438,2]
[399858320,1766758242986,-1391.42070921,0.00016438,2]
[399858321,1766758242996,-1391.42070921,0.00016438,2]
[399858322,1766758243005,-1391.42070921,0.00016438,2]
[399858323,1766758243015,-1391.42070921,0.00016438,2]
[399858324,1766758243025,-1391.42070921,0.00016438,2]
[399858325,1766758243035,-1391.42070921,0.00016438,2]
[399858326,1766758243044,-1391.42070921,0.00016438,2]
[399858327,1766758243054,-1391.42070921,0.00016438,2]
[399858328,1766758243064,-1391.42070921,0.00016438,2]
[399858329,1766758243074,-1391.42070921,0.00016438,2]
[399858330,1766758243083,-1391.42070921,0.00016438,2]
[399858331,1766758243094,-1391.42070921,0.00016438,2]
[399858332,1766758243108,-1391.42070921,0.00016438,2]
[399858333,1766758243120,-1391.42070921,0.00016438,2]
[399858334,1766758243133,-1391.42070921,0.00016438,2]
[399858335,1766758243143,-1391.42070921,0.00016438,2]
[399858336,1766758243153,-1391.42070921,0.00016438,2]
[399858337,1766758243163,-1391.42070921,0.00016438,2]
[399858339,1766758243173,-1391.42070921,0.00016438,2]
[399858340,1766758243182,-1391.42070921,0.00016438,2]
[399858341,1766758243192,-1391.42070921,0.00016438,2]
[399858342,1766758243201,-1391.42070921,0.00016438,2]
[399858343,1766758243211,-1391.42070921,0.00016438,2]
[399858344,1766758243221,-1391.42070921,0.00016438,2]
[399858345,1766758243231,-1391.42070921,0.00016438,2]
[399858346,1766758243241,-1391.42070921,0.00016438,2]
[399858347,1766758243250,-1391.42070921,0.00016438,2]
[399858348,1766758243259,-1391.42070921,0.00016438,2]
[399858349,1766758243269,-1391.42070921,0.00016438,2]
[399858350,1766758243278,-1391.42070921,0.00016438,2]
[399858351,1766758243288,-1391.42070921,0.00016438,2]
[399858352,1766758243298,-1391.42070921,0.00016438,2]
[399858353,1766758243308,-1391.42070921,0.00016438,2]
[399858354,1766758243318,-1391.42070921,0.00016438,2]
[399858355,1766758243327,-1381.82470433,0.00016438,2]
[399858356,1766758243338,-1381.82470433,0.00016438,2]
[399858357,1766758243348,-1381.82470433,0.00016438,2]
[399858358,1766758243357,-1381.82470433,0.00016438,2]
[399858359,1766758243367,-1381.82470433,0.00016438,2]
[399858360,1766758243376,-1381.82470433,0.00016438,2]
[399858361,1766758243385,-1381.82470433,0.00016438,2]
[399858362,1766758243395,-1381.82470433,0.00016438,2]
[399858363,1766758243405,-1381.82470433,0.00016438,2]
[399858364,1766758243415,-1381.82470433,0.00016438,2]
[399858365,1766758243425,-1381.82470433,0.00016438,2]
[399858366,1766758243434,-1381.82470433,0.00016438,2]
[399858367,1766758243444,-1381.82470433,0.00016438,2]
[399858368,1766758243454,-1381.82470433,0.00016438,2]
[399858369,1766758243463,-1381.82470433,0.00016438,2]
[399858370,1766758243473,-1381.82470433,0.00016438,2]
[399858371,1766758243482,-1381.82470433,0.00016438,2]
[399858372,1766758243492,-1381.82470433,0.00016438,2]
[399858373,1766758243502,-1381.82470433,0.00016438,2]
[399858374,1766758243512,-1381.82470433,0.00016438,2]
[399858375,1766758243521,-1381.82470433,0.00016438,2]
[399858377,1766758243531,-1381.82470433,0.00016438,2]
[399858378,1766758243541,-1381.82470433,0.00016438,2]
[399858379,1766758243550,-1381.82470433,0.00016438,2]
[399858380,1766758243560,-1381.82470433,0.00016438,2]
[399858381,1766758243570,-1381.82470433,0.00016438,2]
[399858382,1766758243580,-1381.82470433,0.00016438,2]
[399858383,1766758243590,-1381.82470433,0.00016438,2]
[399858384,1766758243600,-1381.82470433,0.00016438,2]
[399858385,1766758243610,-500.0,0.00016438,2]
[399858386,1766758243619,-198.64860812,0.00016438,2]
[399858387,1766758243630,-801.24318658,0.00016438,2]
[399858388,1766758243640,-150.0,0.0001644,2]
[399858389,1766758243649,-150.0,0.00016446,2]
[399858390,1766758243659,-568.59607352,0.00016449,2]
[399858391,1766758243669,-329.99,0.00016452,2]
[399858392,1766758243679,-150.0,0.00016477,2]
[399858393,1766758243689,-150.0,0.00016481,2]
[399858394,1766758243699,-150.0,0.00016501,2]
[399858395,1766758243709,-150.0,0.00016501,2]
[399858396,1766758243719,-150.0,0.00016514,2]
[399858397,1766758243730,-150.0,0.00016523,2]
[399858398,1766758243740,-150.0,0.00016527,2]
[399858399,1766758243749,-150.0,0.00016562,2]
[399858400,1766758243760,-150.0,0.00016562,2]
[399858401,1766758243772,-150.0,0.00016562,2]
[399858402,1766758243781,-150.0,0.00016562,2]
[399858403,1766758243791,-150.0,0.00016573,2]
[399858404,1766758243805,-150.0,0.00016582,2]
[399858405,1766758243815,-1364.12188903,0.00016585,2]
[399858406,1766758243826,-500.0,0.00016596,2]
[399858407,1766758243837,-22945.69068304,0.00016597,2]
[399858408,1766758243847,-150.0,0.000166,2]
[399858409,1766758243857,-150.0,0.00016609,2]
[399858410,1766758243868,-150.0,0.00016609,2]
[399858411,1766758243878,-150.0,0.00016619,2]
[399858412,1766758243889,-150.0,0.00016622,2]
[399858413,1766758243899,-150.0,0.00016647,2]
[399858414,1766758243909,-150.0,0.00016647,2]
[399858415,1766758243919,-2157.4283569,0.0001666,2]
[399858416,1766758243930,-150.0,0.00016663,2]
[399858417,1766758243941,-1772.09,0.00016664,2]
[399858418,1766758243950,-150.0,0.00016665,2]
[399858419,1766758243961,-150.0,0.00016677,2]
[399858420,1766758243971,-150.0,0.00016683,2]
[399858421,1766758243981,-1314.0,0.00016695,2]
[399858422,1766758243992,-150.0,0.00016703,2]
[399858423,1766758244001,-150.0,0.00016703,2]
[399858424,1766758244011,-150.0,0.00016711,2]
[399858425,1766758244021,-150.0,0.00016732,2]
[399858426,1766758244031,-150.0,0.00016744,2]
[399858427,1766758244041,-150.0,0.00016744,2]
[399858428,1766758244051,-150.0,0.00016755,2]
[399858429,1766758244061,-150.0,0.00016757,2]
[399858430,1766758244071,-151.0,0.00016768,2]
[399858431,1766758244081,-268.406191,0.00016768,2]
[399858432,1766758244092,-660.24393767,0.00016768,2]
[399858433,1766758244102,-1503.16869787,0.00016768,2]
[399858434,1766758244111,-1466.73216774,0.00016768,2]
[399858435,1766758244121,-1153.06788311,0.00016768,2]
[399858436,1766758244132,-1500.0,0.00016768,2]
[399858437,1766758244142,-1500.0,0.00016768,2]
[399858438,1766758244152,-1500.0,0.00016768,2]
[399858439,1766758244163,-1500.0,0.00016768,2]
[399858440,1766758244173,-1500.0,0.00016768,2]
[399858441,1766758244192,-1461.12730955,0.00016768,2]
[399858442,1766758244203,-1500.0,0.00016768,2]
[399858443,1766758244214,-222.82127073,0.00016768,2]
[399858444,1766758244225,-1500.0,0.00016768,2]
[399858445,1766758244235,-891.57758134,0.00016768,2]
[399858446,1766758244246,-1500.0,0.00016768,2]
[399858447,1766758244256,-1500.0,0.00016768,2]
[399858448,1766758244267,-1500.0,0.00016768,2]
[399858449,1766758244278,-1500.0,0.00016768,2]
[399858450,1766758244288,-1500.0,0.00016768,2]
[399858451,1766758244298,-1314.0,0.00016773,2]
[399858452,1766758244308,-150.0,0.00016798,2]
[399858453,1766758244319,-150.0,0.00016798,2]